fUSD/lending_fUSD_20251019
["ID","MTS","AMOUNT","RATE_DAILY","PERIOD"]
[391810953,1760863865833,-253.0,0.00033208,30]
[391810954,1760863865842,-151.0,0.00033208,34]
[391810955,1760863865851,-250.0,0.00033208,34]
[391810956,1760863865860,-1000.0,0.00033208,33]
[391810957,1760863865869,-500.0,0.00033208,37]
[391810958,1760863865878,-8882.6885148,0.00033208,38]
[391810959,1760863865887,-231.28369723,0.00033208,35]
[391810960,1760863865897,-151.0,0.00033208,35]
[391810961,1760863865907,-250.0,0.00033208,35]
[391810962,1760863865916,-3000.0,0.00033208,30]
[391810963,1760863865925,-500.0,0.00033208,38]
[391810964,1760863865935,-1000.0,0.00033208,34]
[391810965,1760863865944,-9211.34798985,0.00033208,39]
[391810966,1760863865953,-239.84119403,0.00033208,36]
[391810967,1760863865963,-151.0,0.00033208,36]
[391810968,1760863865972,-250.0,0.00033208,36]
[391810969,1760863865982,-3000.0,0.00033208,32]
[391810970,1760863865992,-1000.0,0.00033208,35]
[391810971,1760863866002,-500.0,0.00033208,39]
[391810972,1760863866013,-248.71531821,0.00033208,37]
[391810973,1760863866022,-250.0,0.00033208,37]
[391810974,1760863866032,-151.0,0.00033208,37]
[391810975,1760863866041,-257.91778498,0.00033208,38]
[391810976,1760863866051,-250.0,0.00033208,38]
[391810977,1760863866060,-151.0,0.00033208,38]
[391810978,1760863866070,-267.46074303,0.00033208,39]
[391810979,1760863866080,-250.0,0.00033208,39]
[391810980,1760863866089,-151.0,0.00033208,39]
[391810981,1760863866099,-500.0,0.00033208,30]
[391810982,1760863866108,-518.5,0.00033208,32]
[391810983,1760863866118,-368.2839526,0.00033208,33]
[391810984,1760863866128,-220.0,0.00033208,30]
[391810985,1760863866136,-220.0,0.00033208,32]
[391810986,1760863866146,-1068.67,0.00033209,30]
[391810987,1760863866155,-500.0,0.00033209,30]
[391810988,1760863866165,-500.0,0.00033209,30]
[391810989,1760863866175,-500.0,0.00033209,30]
[391810990,1760863866183,-500.0,0.00033209,30]
[391810991,1760863866193,-500.0,0.00033209,30]
[391810992,1760863866203,-500.0,0.00033209,30]
[391810993,1760863866213,-500.0,0.00033209,30]
[391810994,1760863866222,-575.21390678,0.00033209,30]
[391810995,1760863866231,-424.43567836,0.00033209,7]
[391810996,1760863866241,-500.0,0.00033209,7]
[391810997,1760863866251,-1000.0,0.00033245,2]
[391810998,1760863866261,-1000.0,0.00033288,5]
[391810999,1760863866271,-500.0,0.000333,15]
[391811000,1760863866281,-400.0,0.000334,120]
[391811001,1760863866291,-350.0,0.00033468,5]
[391811002,1760863866300,-156.0,0.000336,120]
[391811003,1760863866311,-150.0,0.00033605,120]
[391811004,1760863866320,-1120.0,0.00033666,30]
[391811005,1760863866330,-461.34279264,0.00033699,5]
[391811006,1760863866339,-1156.92,0.00033819,2]
[391811007,1760863866352,-474.98,0.00033819,2]
[391811008,1760863866361,-474.98,0.00033819,2]
[391811009,1760863866371,-474.98,0.00033819,2]
[391811010,1760863866380,-689.54,0.000339,2]
[391811011,1760863866389,-152.0,0.0003391,5]
[391811012,1760863866399,-204.22923496,0.00033939,60]
[391811013,1760863866408,-500.0,0.00033939,60]
[391811014,1760863866417,-806263.43124362,0.00033982,2]
[391811015,1760863866427,-501.0,0.00033982,120]
[391811016,1760863866436,-153.0,0.00034,120]
[391811017,1760863866445,-300.0,0.00034,120]
[391811018,1760863866455,-150.0,0.00034004,120]
[391811019,1760863866464,-450.0,0.00034016,5]
[391811020,1760863866472,-154.0,0.000341,120]
[391811021,1760863866482,-4655.36,0.000341,14]
[391811022,1760863866491,-12463.35,0.000341,2]
[391811023,1760863866501,-150.0,0.00034226,120]
[391811024,1760863866510,-150.0,0.0003427,120]
[391811025,1760863866519,-300.92,0.00034324,2]
[391811026,1760863866528,-150.0,0.00034374,120]
[391811027,1760863866538,-151.0,0.000345,14]
[391811028,1760863866547,-151.0,0.000345,14]
[391811029,1760863866557,-195.0,0.00034521,30]
[391811030,1760863866566,-317.04882183,0.00034564,5]
[391811031,1760863866575,-12000.0,0.00034567,31]
[391811032,1760863866585,-299.74,0.00034621,3]
[391811033,1760863866597,-360.14,0.00034641,2]
[391811034,1760863866606,-176.45,0.00034641,2]
[391811035,1760863866615,-168.31,0.00034641,2]
[391811036,1760863866625,-301.84,0.00034641,2]
[391811037,1760863866634,-413.59,0.00034641,2]
[391811038,1760863866644,-300.0,0.00034641,2]
[391811039,1760863866654,-168.31,0.00034641,2]
[391811040,1760863866663,-168.31,0.00034641,2]
[391811041,1760863866673,-168.31,0.00034641,2]
[391811042,1760863866683,-168.31,0.00034641,2]
[391811043,1760863866692,-1000.0,0.00034666,30]
[391811044,1760863866702,-200.0,0.00034689,2]
[391811045,1760863866712,-200.0,0.00034689,2]
[391811046,1760863866721,-200.0,0.00034689,2]
[391811047,1760863866730,-200.0,0.00034689,2]
[391811048,1760863866739,-200.0,0.00034689,2]
[391811049,1760863866749,-200.0,0.00034689,2]
[391811050,1760863866759,-200.0,0.00034689,2]
[391811051,1760863866768,-200.0,0.00034689,2]
[391811052,1760863866777,-200.0,0.00034689,2]
[391811053,1760863866787,-200.0,0.00034689,2]
[391811054,1760863866796,-200.0,0.00034689,2]
[391811055,1760863866806,-200.0,0.00034689,2]
[391811056,1760863866815,-200.0,0.00034689,2]
[391811057,1760863866827,-200.0,0.00034689,2]
[391811058,1760863866837,-200.0,0.00034689,2]
[391811059,1760863866848,-200.0,0.00034689,2]
[391811060,1760863866858,-200.0,0.00034689,2]
[391811061,1760863866868,-200.0,0.00034689,2]
[391811062,1760863866878,-200.0,0.00034689,2]
[391811063,1760863866888,-200.0,0.00034689,2]
[391811064,1760863866898,-200.0,0.00034689,2]
[391811065,1760863866907,-200.0,0.00034689,2]
[391811066,1760863866915,-200.0,0.00034689,2]
[391811067,1760863866925,-200.0,0.00034689,2]
[391811068,1760863866935,-200.0,0.00034689,2]
[391811069,1760863866944,-200.0,0.00034689,2]
[391811070,1760863866954,-200.0,0.00034689,2]
[391811071,1760863866964,-200.0,0.00034689,2]
[391811072,1760863866973,-200.0,0.00034689,2]
[391811073,1760863866983,-200.0,0.00034689,2]
[391811074,1760863866993,-200.0,0.00034689,2]
[391811075,1760863867003,-200.0,0.00034689,2]
[391811076,1760863867013,-200.0,0.00034689,2]
[391811077,1760863867023,-200.0,0.00034689,2]
[391811078,1760863867033,-200.0,0.00034689,2]
[391811079,1760863867043,-248.0,0.00034689,2]
[391811080,1760863867053,-2000.0,0.00034708,120]
[391811081,1760863867063,-500.0,0.0003472,120]
[391811082,1760863867072,-1091.0,0.00034819,5]
[391811083,1760863867083,-502.90113865,0.00034821,60]
[391811084,1760863867093,-305.72284047,0.00034853,7]
[391811085,1760863867103,-202.40457907,0.000349,120]
[391811086,1760863867113,-1166.06523479,0.0003495,120]
[391811087,1760863867123,-5008.92246,0.0003496,30]
[391811088,1760863867133,-502.0,0.00034982,120]
[391811089,1760863867143,-250.0,0.00035,7]
[391811090,1760863867154,-2500.0,0.00035,30]
[391811091,1760863867163,-1123.0,0.00035,5]
[391811092,1760863867175,-187.21,0.00035,120]
[391811093,1760863867185,-521.14,0.00035,120]
[391811094,1760863867195,-591.36,0.00035,120]
[391811095,1760863867204,-568.36,0.00035,120]
[391811096,1760863867215,-186.92,0.00035,120]
[391811097,1760863867226,-546.89,0.00035,120]
[391811098,1760863867236,-207.69093257,0.00035,30]
[391811099,1760863867247,-300.0,0.00035194,9]
[391811100,1760863867257,-2500.0,0.000353,14]
[391811101,1760863867271,-1199.86,0.00035462,2]
[391811102,1760863867280,-151.0,0.000355,14]
[391811103,1760863867290,-12463.35,0.000355,2]
[391811104,1760863867301,-416.93,0.0003555,2]
[391811105,1760863867311,-154.0,0.000356,120]
[391811106,1760863867320,-4655.36,0.000356,14]
[391811107,1760863867331,-6220.0,0.00035616,7]
[391811108,1760863867343,-156.9,0.00035616,2]
[391811109,1760863867352,-1000.0,0.00035666,30]
[391811110,1760863867363,-150.0,0.00035694,2]
[391811111,1760863867372,-150.0,0.00035694,2]
[391811112,1760863867382,-150.0,0.00035694,2]
[391811113,1760863867391,-150.0,0.00035694,2]
[391811114,1760863867401,-150.0,0.00035694,2]
[391811115,1760863867410,-150.0,0.00035694,2]
[391811116,1760863867420,-5257.94341993,0.0003585,60]
[391811117,1760863867429,-503.0,0.00035982,120]
[391811118,1760863867438,-21270.35656255,0.00035992,2]
[391811119,1760863867447,-330.68,0.00036,7]
[391811120,1760863867456,-50029.6841841,0.00036,6]
[391811121,1760863867466,-10677.73684714,0.00036,2]
[391811122,1760863867475,-263.15270487,0.00036,120]
[391811123,1760863867484,-300.0,0.00036,120]
[391811124,1760863867493,-156.0,0.000361,120]
[391811125,1760863867502,-748.420487,0.00036208,120]
[391811126,1760863867511,-500.0,0.00036232,120]
[391811127,1760863867520,-1000.0,0.000365,15]
[391811128,1760863867530,-1028.91343644,0.00036582,5]
[391811129,1760863867539,-1000.0,0.00036666,30]
[391811130,1760863867548,-3879.9486361,0.00036686,2]
[391811131,1760863867558,-292.35960198,0.00036686,2]
[391811132,1760863867567,-7053.06801706,0.00036686,2]
[391811133,1760863867577,-890.79273742,0.00036686,2]
[391811134,1760863867587,-152.0,0.00036687,6]
[391811135,1760863867597,-1613.03692224,0.000367,120]
[391811136,1760863867607,-474.98,0.00036783,2]
[391811137,1760863867616,-474.98,0.00036783,2]
[391811138,1760863867626,-156.7684,0.00036888,7]
[391811139,1760863867635,-31540.67832663,0.000369,30]
[391811140,1760863867645,-3159.91885064,0.000369,120]
[391811141,1760863867655,-13886.08893262,0.0003691,2]
[391811142,1760863867665,-504.0,0.00036982,120]
[391811143,1760863867675,-1242.29765712,0.00037,30]
[391811144,1760863867685,-14764.0,0.00037,120]
[391811145,1760863867694,-1898.0,0.00037,120]
[391811146,1760863867704,-1898.0,0.00037,120]
[391811147,1760863867714,-330.68,0.00037,7]
[391811148,1760863867723,-333.08,0.00037,7]
[391811149,1760863867733,-662.16,0.00037,7]
[391811150,1760863867742,-162.70006297,0.00037,2]
[391811151,1760863867752,-576.22243923,0.00037,120]
[391811152,1760863867761,-154.0,0.000371,120]
[391811153,1760863867771,-12463.35,0.000371,2]
[391811154,1760863867781,-180.44,0.000371,30]
[391811155,1760863867791,-3127.68490526,0.00037212,120]
[391811156,1760863867800,-1000.0,0.000373,30]
[391811157,1760863867810,-1000.0,0.000373,30]
[391811158,1760863867820,-1000.0,0.000373,30]
[391811159,1760863867829,-1000.0,0.000373,30]
[391811160,1760863867839,-1000.0,0.000373,30]
[391811161,1760863867850,-1000.0,0.000373,30]
[391811162,1760863867860,-1000.0,0.000373,30]
[391811163,1760863867869,-1000.0,0.000373,30]
[391811164,1760863867879,-1000.0,0.000373,30]
[391811165,1760863867889,-1000.0,0.000373,30]
[391811166,1760863867899,-1000.0,0.000373,30]
[391811167,1760863868004,-272.85762821,0.000373,30]
[391811168,1760863868026,-4655.36,0.000373,14]
[391811169,1760863868036,-189172.13953924,0.0003739,14]
[391811170,1760863868046,-6283.05606889,0.0003739,14]
[391811171,1760863868056,-8113.0,0.000375,120]
[391811172,1760863868065,-2500.0,0.00037534,7]
[391811173,1760863868076,-2500.0,0.00037543,7]
[391811174,1760863868086,-4259.04155643,0.0003759,2]
[391811175,1760863868096,-1000.0,0.00037666,60]
[391811176,1760863868106,-500.0,0.00037744,120]
[391811177,1760863868116,-500.0,0.0003777,15]
[391811178,1760863868126,-689.54,0.000378,2]
[391811179,1760863868136,-198.60802916,0.0003788,2]
[391811180,1760863868146,-450.0,0.00037934,16]
[391811181,1760863868156,-791.48292532,0.00037999,120]
[391811182,1760863868165,-366.67389308,0.00038,120]
[391811183,1760863868175,-1864.97054019,0.00038,120]
[391811184,1760863868186,-273.50628965,0.00038,120]
[391811185,1760863868196,-500.0,0.00038,120]
[391811186,1760863868206,-500.0,0.00038,120]
[391811187,1760863868216,-615.0,0.00038,120]
[391811188,1760863868226,-500.0,0.00038,120]
[391811189,1760863868236,-151.0,0.00038,14]
[391811190,1760863868246,-500.0,0.00038,120]
[391811191,1760863868256,-346.58683368,0.00038,10]
[391811192,1760863868266,-300.0,0.00038,120]
[391811193,1760863868276,-689.54,0.00038,2]
[391811194,1760863868286,-288.71460886,0.000381,33]
[391811195,1760863868295,-189.91520597,0.000381,33]
[391811196,1760863868305,-330.68,0.000381,7]
[391811197,1760863868315,-6206.53,0.00038356,10]
[391811198,1760863868325,-239.6487166,0.00038356,2]
[391811199,1760863868334,-35695.67589927,0.000386,120]
[391811200,1760863868346,-12463.35,0.000386,30]
[391811201,1760863868356,-309.89455287,0.00038646,60]
[391811202,1760863868365,-212.20061045,0.00038646,60]
[391811203,1760863868374,-1000.0,0.00038666,60]
[391811204,1760863868383,-154.0,0.000387,120]
[391811205,1760863868393,-156.0,0.000387,120]
[391811206,1760863868402,-5691.0,0.000387,117]
[391811207,1760863868411,-2143.2979126,0.000388,120]
[391811208,1760863868420,-4655.36,0.000388,14]
[391811209,1760863868429,-2127.81,0.000388,60]
[391811210,1760863868439,-1410.916,0.00038888,30]
[391811211,1760863868449,-683.08124986,0.000389,120]
[391811212,1760863868458,-5000.0,0.000389,120]
[391811213,1760863868468,-354.99062068,0.00038913,7]
[391811214,1760863868477,-7761.65259511,0.0003899,14]
[391811215,1760863868489,-70811.13704374,0.00039,10]
[391811216,1760863868498,-2600.0,0.00039,120]
[391811217,1760863868508,-14764.0,0.00039,120]
[391811218,1760863868516,-1898.0,0.00039,120]
[391811219,1760863868526,-1898.0,0.00039,120]
[391811220,1760863868536,-1500.50434501,0.00039,120]
[391811221,1760863868545,-500.0,0.00039,120]
[391811222,1760863868554,-500.0,0.00039,120]
[391811223,1760863868564,-689.54,0.000392,2]
[391811224,1760863868573,-500.0,0.00039255,120]
[391811225,1760863868583,-2500.0,0.00039415,14]
[391811226,1760863868594,-4677.06073294,0.0003942,120]
[391811227,1760863868603,-2500.0,0.00039424,14]
[391811228,1760863868613,-2500.0,0.00039433,14]
[391811229,1760863868623,-2500.0,0.00039442,14]
[391811230,1760863868632,-157.223256,0.00039452,120]
[391811231,1760863868641,-175.948218,0.00039452,120]
[391811232,1760863868650,-229.562429,0.00039452,120]
[391811233,1760863868660,-153.907849,0.00039452,120]
[391811234,1760863868669,-157.223255,0.00039452,120]
[391811235,1760863868679,-154.429778,0.00039452,120]
[391811236,1760863868688,-201.302082,0.00039452,120]
[391811237,1760863868697,-232.311866,0.00039452,120]
[391811238,1760863868706,-152.0,0.00039464,7]
[391811239,1760863868715,-301.77711739,0.00039464,5]
[391811240,1760863868726,-304.25,0.00039654,2]
[391811241,1760863868735,-1000.0,0.00039666,60]
[391811242,1760863868744,-689.54,0.000397,2]
[391811243,1760863868754,-426.46,0.000399,120]
[391811244,1760863868764,-5115.78416628,0.000399,120]
[391811245,1760863868773,-1756.0,0.00039966,30]
[391811246,1760863868782,-1024.85447797,0.0003997,15]
[391811247,1760863868791,-445.0,0.00039986,90]
[391811248,1760863868801,-12000.0,0.00039998,31]
[391811249,1760863868811,-920.9816345,0.00039999,120]
[391811250,1760863868821,-442.61430059,0.00039999,31]
[391811251,1760863868831,-382.85650725,0.00039999,15]
[391811252,1760863868841,-341.28464098,0.00039999,31]
[391811253,1760863868852,-500.0,0.00039999,31]
[391811254,1760863868861,-476.27154814,0.00039999,31]
[391811255,1760863868871,-500.0,0.00039999,31]
[391811256,1760863868880,-500.0,0.00039999,31]
[391811257,1760863868889,-438.48266303,0.00039999,31]
[391811258,1760863868899,-358.2226291,0.00039999,31]
[391811259,1760863868908,-500.0,0.00039999,31]
[391811260,1760863868917,-500.0,0.00039999,31]
[391811261,1760863868927,-500.0,0.00039999,31]
[391811262,1760863868937,-500.0,0.00039999,31]
[391811263,1760863868946,-500.0,0.00039999,31]
[391811264,1760863868956,-500.0,0.00039999,31]
[391811265,1760863868965,-500.0,0.00039999,31]
[391811266,1760863868974,-500.0,0.00039999,31]
[391811267,1760863868984,-500.0,0.00039999,31]
[391811268,1760863868994,-255.34376233,0.00039999,31]
[391811269,1760863869004,-50000.0,0.0004,40]
[391811270,1760863869013,-414.41037173,0.0004,7]
[391811271,1760863869024,-4042.3347584,0.0004,14]
[391811272,1760863869034,-5009.64074741,0.0004,10]
[391811273,1760863869045,-961.82348917,0.0004,7]
[391811274,1760863869055,-996.39564586,0.0004,20]
[391811275,1760863869064,-384.00634793,0.0004,2]
[391811276,1760863869076,-215.21766616,0.0004,2]
[391811277,1760863869086,-983.89767249,0.0004,2]
[391811278,1760863869097,-445963.22918349,0.0004,2]
[391811279,1760863869107,-477.12749073,0.0004,30]
[391811280,1760863869116,-341.57774389,0.0004,120]
[391811281,1760863869126,-1871.53991475,0.0004,120]
[391811282,1760863869136,-666.62973829,0.0004,30]
[391811283,1760863869146,-1085.27420047,0.0004,120]
[391811284,1760863869156,-204.4280851,0.0004,30]
[391811285,1760863869166,-736.55917583,0.0004,30]
[391811286,1760863869176,-519.10394683,0.0004,120]
[391811287,1760863869185,-2480.7496286,0.0004,120]
[391811288,1760863869195,-266.15032271,0.0004,120]
[391811289,1760863869205,-1138.49347963,0.0004,120]
[391811290,1760863869215,-1212.89470441,0.0004,120]
[391811291,1760863869225,-1335.91508213,0.0004,30]
[391811292,1760863869235,-500.0,0.0004,30]
[391811293,1760863869246,-2014.92376514,0.0004,120]
[391811294,1760863869257,-1523.27151521,0.0004,120]
[391811295,1760863869270,-300.0,0.0004,60]
[391811296,1760863869280,-2500.0,0.0004,30]
[391811297,1760863869289,-300.0,0.0004,120]
[391811298,1760863869299,-1000.0,0.0004,120]
[391811299,1760863869308,-317.0,0.0004,120]
[391811300,1760863869318,-26441.38180896,0.0004,120]
[391811301,1760863869327,-74252.54259348,0.0004,120]
[391811302,1760863869338,-8739.11491871,0.0004,10]
[391811303,1760863869348,-100000.0,0.0004,120]
[391811304,1760863869358,-292.637,0.0004,120]
[391811305,1760863869367,-1911.0,0.0004,120]
[391811306,1760863869377,-9282.67879378,0.0004,120]
[391811307,1760863869386,-1000.0,0.0004,120]
[391811308,1760863869395,-698.9640617,0.0004,120]
[391811309,1760863869404,-9128.44541791,0.0004,120]
[391811310,1760863869413,-15348.19575287,0.0004,120]
[391811311,1760863869423,-278502.08801169,0.0004,120]
[391811312,1760863869432,-124461.94188679,0.0004,30]
[391811313,1760863869442,-304.8,0.0004,120]
[391811314,1760863869451,-154.0,0.000402,120]
[391811315,1760863869461,-1756.0,0.00040378,30]
[391811316,1760863869471,-5016.31370596,0.00040378,2]
[391811317,1760863869480,-12463.35,0.000404,30]
[391811318,1760863869489,-1444.0,0.00040658,120]
[391811319,1760863869498,-1000.0,0.00040666,60]
[391811320,1760863869507,-600.0,0.00040674,23]
[391811321,1760863869516,-2011.0,0.000407,120]
[391811322,1760863869526,-500.0,0.00040767,120]
[391811323,1760863869535,-1756.0,0.0004079,30]
[391811324,1760863869545,-277.4020506,0.000408,60]
[391811325,1760863869554,-4655.36,0.000408,14]
[391811326,1760863869564,-7053.06801706,0.00040898,2]
[391811327,1760863869572,-3879.9486361,0.00040898,2]
[391811328,1760863869582,-292.35960198,0.00040898,2]
[391811329,1760863869591,-890.79273742,0.00040898,2]
[391811330,1760863869603,-202.65662522,0.00040898,8]
[391811331,1760863869613,-5000.0,0.000409,120]
[391811332,1760863869622,-200.0,0.000409,14]
[391811333,1760863869631,-3126934.78599401,0.00040998,60]
[391811334,1760863869641,-3215162.6677976,0.00040998,120]
[391811335,1760863869652,-52390.84865887,0.00040998,60]
[391811336,1760863869662,-505.17015652,0.00041,30]
[391811337,1760863869671,-2156.30657967,0.00041,120]
[391811338,1760863869680,-1000.0,0.00041,120]
[391811339,1760863869689,-14764.0,0.00041,120]
[391811340,1760863869698,-1898.0,0.00041,120]
[391811341,1760863869707,-1898.0,0.00041,120]
[391811342,1760863869717,-641.7,0.00041,120]
[391811343,1760863869726,-469.31146203,0.00041,30]
[391811344,1760863869735,-250.0,0.00041,14]
[391811345,1760863869744,-250.0,0.00041,14]
[391811346,1760863869754,-250.0,0.00041,14]
[391811347,1760863869763,-250.0,0.00041,14]
[391811348,1760863869772,-250.0,0.00041,14]
[391811349,1760863869781,-250.0,0.00041,14]
[391811350,1760863869789,-250.0,0.00041,14]
[391811351,1760863869799,-250.0,0.00041,14]
[391811352,1760863869808,-274.8,0.00041,14]
[391811353,1760863869817,-1005.00412138,0.00041,30]
[391811354,1760863869827,-50000.0,0.00041096,120]
[391811355,1760863869836,-30000.0,0.00041096,120]
[391811356,1760863869847,-500.0,0.00041096,30]
[391811357,1760863869857,-500.0,0.00041096,30]
[391811358,1760863869866,-500.0,0.00041096,30]
[391811359,1760863869875,-505.0,0.00041096,30]
[391811360,1760863869885,-500.0,0.00041096,30]
[391811361,1760863869894,-500.0,0.00041096,30]
[391811362,1760863869903,-500.0,0.00041096,30]
[391811363,1760863869913,-500.0,0.00041096,30]
[391811364,1760863869922,-500.0,0.00041096,30]
[391811365,1760863869931,-500.0,0.00041096,30]
[391811366,1760863869940,-500.0,0.00041096,30]
[391811367,1760863869950,-500.0,0.00041096,30]
[391811368,1760863869959,-500.0,0.00041096,30]
[391811369,1760863869968,-500.0,0.00041096,30]
[391811370,1760863869977,-500.0,0.00041096,30]
[391811371,1760863869987,-500.0,0.00041096,30]
[391811372,1760863869996,-500.0,0.00041096,30]
[391811373,1760863870007,-500.0,0.00041096,30]
[391811374,1760863870017,-500.0,0.00041096,30]
[391811375,1760863870027,-500.0,0.00041096,30]
[391811376,1760863870037,-500.0,0.00041096,30]
[391811377,1760863870046,-500.0,0.00041096,30]
[391811378,1760863870056,-500.0,0.00041096,30]
[391811379,1760863870065,-500.0,0.00041096,30]
[391811380,1760863870075,-500.0,0.00041096,30]
[391811381,1760863870084,-500.0,0.00041096,30]
[391811382,1760863870095,-500.0,0.00041096,30]
[391811383,1760863870104,-500.0,0.00041096,30]
[391811384,1760863870114,-500.0,0.00041096,30]
[391811385,1760863870123,-500.0,0.00041096,30]
[391811386,1760863870133,-500.0,0.00041096,30]
[391811387,1760863870142,-500.0,0.00041096,30]
[391811388,1760863870151,-500.0,0.00041096,30]
[391811389,1760863870161,-500.0,0.00041096,30]
[391811390,1760863870171,-500.0,0.00041096,30]
[391811391,1760863870181,-500.0,0.00041096,30]
[391811392,1760863870191,-500.0,0.00041096,30]
[391811393,1760863870200,-500.0,0.00041096,30]
[391811394,1760863870210,-500.0,0.00041096,30]
[391811395,1760863870221,-500.0,0.00041096,30]
[391811396,1760863870231,-500.0,0.00041096,30]
[391811397,1760863870240,-500.0,0.00041096,30]
[391811398,1760863870250,-500.0,0.00041096,30]
[391811399,1760863870259,-500.0,0.00041096,30]
[391811400,1760863870268,-500.0,0.00041096,30]
[391811401,1760863870277,-500.0,0.00041096,30]
[391811402,1760863870286,-500.0,0.00041096,30]
[391811403,1760863870295,-500.0,0.00041096,30]
[391811404,1760863870304,-500.0,0.00041096,30]
[391811405,1760863870313,-500.0,0.00041096,30]
[391811406,1760863870322,-500.0,0.00041096,30]
[391811407,1760863870331,-500.0,0.00041096,30]
[391811408,1760863870339,-500.0,0.00041096,30]
[391811409,1760863870350,-487.0,0.00041096,30]
[391811410,1760863870359,-578.70663919,0.000411,2]
[391811411,1760863870368,-500.0,0.000411,2]
[391811412,1760863870377,-156.0,0.000412,120]
[391811413,1760863870387,-1756.0,0.00041202,30]
[391811414,1760863870396,-614.28039341,0.00041202,30]
[391811415,1760863870405,-330.68,0.000413,7]
[391811416,1760863870414,-5800.0,0.000413,14]
[391811417,1760863870529,-5800.0,0.00041309,14]
[391811418,1760863870539,-5800.0,0.00041317,14]
[391811419,1760863870548,-5800.0,0.00041326,14]
[391811420,1760863870557,-2065.01101313,0.00041355,14]
[391811421,1760863870566,-525.34421497,0.0004143,120]
[391811422,1760863870575,-201.11571892,0.00041451,120]
[391811423,1760863870584,-200.0,0.00041511,120]
[391811424,1760863870593,-5800.0,0.00041534,14]
[391811425,1760863870604,-4112.33,0.00041562,120]
[391811426,1760863870613,-1756.0,0.00041614,30]
[391811427,1760863870622,-1000.0,0.00041666,60]
[391811428,1760863870631,-154.0,0.000417,120]
[391811429,1760863870641,-180.44,0.000417,30]
[391811430,1760863870650,-212.02291941,0.000419,16]
[391811431,1760863870659,-220.6,0.00042,30]
[391811432,1760863870668,-159.85648307,0.00042,120]
[391811433,1760863870677,-177.0612318,0.00042,30]
[391811434,1760863870686,-1631.52153831,0.00042,120]
[391811435,1760863870696,-658.12600145,0.00042,120]
[391811436,1760863870705,-1000.0,0.00042,120]
[391811437,1760863870714,-2000.0,0.00042,120]
[391811438,1760863870723,-40631.64157196,0.00042,30]
[391811439,1760863870732,-10931.67467489,0.00042,30]
[391811440,1760863870742,-50548.34876063,0.00042,30]
[391811441,1760863870751,-300.0,0.00042,120]
[391811442,1760863870760,-500.0,0.00042,120]
[391811443,1760863870770,-100797.91784294,0.00042,120]
[391811444,1760863870784,-8800.75224729,0.00042,120]
[391811445,1760863870793,-15160.0,0.00042,60]
[391811446,1760863870803,-50000.0,0.00042,120]
[391811447,1760863870812,-228.2661919,0.00042,120]
[391811448,1760863870821,-5751.98,0.00042,120]
[391811449,1760863870830,-250.0,0.00042,30]
[391811450,1760863870840,-250.0,0.00042,30]
[391811451,1760863870850,-250.0,0.00042,30]
[391811452,1760863870860,-12463.35,0.00042,30]